Cogmind - Beta 13 @@@ ROGUE MODE // 2024.04.06 @ 17:18:20 Player: dwahgon Result: Destroyed by X-62 Marksman with Gauss Rifle Performance ------------- Evolutions (4) 2000 Regions Visited (13) 2600 Robots Destroyed (89) 445 Value Destroyed (3332) 3332 Prototype IDs (16) 320 Alien Tech Used (0) 0 Bonus (2082) 2082 TOTAL SCORE: 10779 Bonus ------- High Alert Combat Kills 28 Follower Combat Kills 2044 Network Hubs Disabled 200 Met Imprinter 300 Was Imprinted 300 Built Enhanced Grunts 300 Met R17 at Cetus 500 Friendly Fire -1590 Cogmind --------- Core Integrity 0/850 Matter 300/300 Energy 100/100 System Corruption 23% Temperature Cool (0) Movement Core (50) Location -6/Hub_04(d) Parts ------- > --- POWER (1) -------- (None) > --- PROPULSION (4) --- (None) > --- UTILITY (8) ------ (None) > --- WEAPON (2) ------- (None) > --- INVENTORY (5) ---- Light Deuterium Engine F-cell Engine Hypervelocity Gauss Rifle Heavy Machine Gun Remote Datajack Peak State ------------ > --- POWER ------------ Zionite Light DM Reactor > --- PROPULSION ------- Improved Gravmag System Improved Gravmag System Gravmag Array > --- UTILITY ---------- Advanced Heat Sink Large Storage Unit Experimental Signal Interpreter 0b10 Decoder Chip [Generic] Experimental Armor Integrity Analyzer Transmission Jammer Hacking Suite Improved Hacking Suite > --- WEAPON ----------- Gatling Laser Zionite Laser-S > --- INVENTORY -------- Light Deuterium Engine F-cell Engine Light Fission Core Improved Gravmag System Improved Heat Sink Cooling System Zionite Biocell Improved Sensor Array Improved Sensor Array Experimental Signal Interpreter Gatling Laser Hypervelocity Gauss Rifle Advanced Assault Cannon Advanced Assault Cannon Remote Datajack [Rating: 85] Favorites ----------- Power Deuterium Engine Engine Deuterium Engine Power Core Enhanced Nuclear Core Reactor Zionite Light DM Reactor Propulsion Carbon-fiber Leg Treads Light Treads Leg Carbon-fiber Leg Hover Unit Improved Gravmag System Flight Unit Cesium-ion Thruster Utility Large Storage Unit Device Improved Sensor Array Storage Large Storage Unit Processor 0b10 Decoder Chip [Generic] Hackware Hacking Suite Protection Centrium Medium Armor Plating Weapon Heavy Particle Cannon Energy Gun Gatling Laser Energy Cannon Heavy Particle Cannon Ballistic Gun Hypervelocity Gauss Rifle Ballistic Cannon Advanced Assault Cannon Special Weapon Remote Datajack Slashing Weapon Makeshift Axe Special Melee Weapon Improved Datajack Build | -11 -10 -9 -8 -7 -7 -7 -7 -6 -6 -6 -6 -6 -6 ------- Run | Yrd Mat Mat Mat Fac Low Low Zio Pro Fac Ext Cet Arc Hub Slots Evolved 8 | . . 2 2 2 . . . . 2 . . . . Power . | . . . . . . . . . . . . . . Propulsion 2 | . . 1 1 . . . . . . . . . . Utility 6 | . . 1 1 2 . . . . 2 . . . . Weapon . | . . . . . . . . . . . . . . Parts Attached 159 | 6 10 16 17 15 8 8 6 15 28 26 2 1 1 Power 21 | 2 2 4 3 1 . 3 . 1 2 3 . . . Engine 15 | 2 2 4 3 . . 2 . 1 1 . . . . Core 4 | . . . . 1 . 1 . . 1 1 . . . Reactor 2 | . . . . . . . . . . 2 . . . Propulsion 46 | 2 3 7 6 5 2 1 1 5 9 4 . 1 . Treads 9 | . . . 4 2 . . . 1 2 . . . . Leg 28 | 2 3 7 2 3 1 1 1 4 4 . . . . Wheel . | . . . . . . . . . . . . . . Hover 7 | . . . . . . . . . 3 3 . 1 . Flight 2 | . . . . . 1 . . . . 1 . . . Utility 44 | . 2 2 5 5 1 2 3 3 9 9 2 . 1 Device 23 | . 1 1 3 3 . 1 . . 6 7 1 . . Storage 6 | . . 1 . . . . . . 2 2 . . 1 Processor 10 | . 1 . 1 1 1 1 2 3 . . . . . Hackware 4 | . . . 1 1 . . 1 . 1 . . . . Protection 1 | . . . . . . . . . . . 1 . . Artifact . | . . . . . . . . . . . . . . Weapon 48 | 2 3 3 3 4 5 2 2 6 8 10 . . . Energy Gun 18 | 2 1 . . 2 2 1 . 2 5 3 . . . Energy Cannon 14 | . 2 2 2 2 2 1 . 3 . . . . . Ballistic Gun 1 | . . . . . . . . . . 1 . . . Ballistic Cannon 4 | . . . . . . . . . 1 3 . . . Launcher . | . . . . . . . . . . . . . . Special Weapon 3 | . . . . . . . . . . 3 . . . Impact Weapon . | . . . . . . . . . . . . . . Slashing Weapon 3 | . . . . . . . 1 . 2 . . . . Piercing Weapon . | . . . . . . . . . . . . . . Special Melee Weapon 5 | . . 1 1 . 1 . 1 1 . . . . . Unidentified Prototypes 14 | . . . . 2 . . 1 4 1 5 1 . . Parts Lost 41 | . . . 1 3 7 4 . 6 8 2 1 1 8 Power 3 | . . . . . 1 1 . . . . . . 1 Propulsion 18 | . . . . 2 5 . . 3 3 1 . 1 3 Utility 12 | . . . 1 1 . 1 . 2 2 . 1 . 4 Weapon 8 | . . . . . 1 2 . 1 3 1 . . . Highest Loss Streak 8 | . . . 1 2 4 3 . 2 3 1 1 1 8 To Critical Strikes . | . . . . . . . . . . . . . . Average Slot Usage (%) 87 | . 94 96 98 93 80 71 77 90 97 92 92 92 78 Engine 4 | . 14 10 9 . . 5 7 7 5 . . . . Core 1 | . . . . 6 3 . . . . . . . . Treads 4 | . . . 16 16 5 . . 4 4 . . . . Leg 12 | . 28 31 19 9 6 2 12 16 19 . . . . Hover 2 | . . . . . . . . . . 19 20 19 16 Flight 2 | . . . . . 3 7 7 . . . . . . Device 13 | . 11 10 17 15 15 15 12 . 16 19 25 26 21 Storage 6 | . . 9 9 7 7 7 7 7 6 6 6 6 5 Processor 15 | . 11 11 9 12 15 13 15 22 20 15 13 13 12 Hackware 7 | . . . . 8 7 7 9 15 9 9 1 . . Energy Gun 4 | . 19 . . 2 . 2 . 6 11 5 6 6 5 Energy Cannon 6 | . 8 21 15 10 14 7 . 6 . . . . . Naked Turns 19 | . . . . . . . . . . . . . 19 Heaviest Build 52 | 7 12 33 44 44 42 42 41 40 46 45 52 52 52 Greatest Support 82 | 20 20 39 82 82 42 15 35 65 68 44 40 40 40 Greatest Overweight (x) 11 | . . . 2 2 11 8 2 2 2 1 1 1 10 Average Overweight (x) . | . . . . . 2 4 . . . . 1 1 . Largest Inventory Capacity 25 | 5 5 15 15 15 15 15 15 15 15 25 15 15 15 Average Capacity 14 | 5 5 13 15 15 15 15 15 15 15 15 15 15 14 Most Carried 15 | 3 5 15 15 15 15 12 15 15 15 15 14 13 15 Average Carried 12 | 1 4 8 13 13 12 9 11 11 14 14 13 12 12 Final Capacity 15 | 5 5 15 15 15 15 15 15 15 15 15 15 15 5 Final Carried 15 | 3 5 12 15 15 12 7 15 15 14 13 13 12 5 Class Distribution -------------------- 46% | Mutant 26% | Hacker-Mutant 19% | Scavenger-Mutant 6% | Commander-Mutant Dominant Class ---------------- Mutant | -10/Materials Mutant | -9/Materials Mutant | -8/Materials Scavenger-Mutant | -7/Factory Mutant | -7/Lower Caves Mutant | -7/Lower Caves Mutant | -7/Zion Hacker-Mutant | -6/Proximity Caves Hacker-Mutant | -6/Factory Commander-Mutant | -6/Extension Commander-Mutant | -6/Cetus Commander-Mutant | -6/Archives Scavenger-Mutant | -6/Hub_04(d) Resources | -11 -10 -9 -8 -7 -7 -7 -7 -6 -6 -6 -6 -6 -6 ----------- Run | Yrd Mat Mat Mat Fac Low Low Zio Pro Fac Ext Cet Arc Hub Matter Collected 2368 | 252 108 130 190 150 145 119 27 218 239 556 148 36 50 Remotely . | . . . . . . . . . . . . . . Salvage Created 4063 | 44 422 393 569 270 390 211 . 541 542 85 102 136 358 Parts 200 | 2 21 18 31 22 21 13 . 23 24 4 2 7 12 Haulers Intercepted 3 | . 1 1 1 . . . . . . . . . . Recyclers Shooed 3 | . 1 . 2 . . . . . . . . . . Parts Field Recycled . | . . . . . . . . . . . . . . Retrieved Matter . | . . . . . . . . . . . . . . Parts Self-Destructed 59 | . . . . . 16 14 . 29 . . . . . Prevented 19 | . . . . . 5 1 . 13 . . . . . Kills | -11 -10 -9 -8 -7 -7 -7 -7 -6 -6 -6 -6 -6 -6 ------- Run | Yrd Mat Mat Mat Fac Low Low Zio Pro Fac Ext Cet Arc Hub Combat Hostiles Destroyed 70 | 1 10 7 8 5 10 5 . 10 10 1 1 2 . Melee 3 | . . . . . . . . . 3 . . . . Guns 21 | 1 6 . . 1 1 1 . 3 6 . 1 1 . Cannons 38 | . 3 7 8 4 8 3 . 4 . . . 1 . AOE 3 | . . . . . . 1 . 2 . . . . . Classes Destroyed 13 | 1 3 1 1 2 1 . . 1 1 1 . . 1 Worker 2 | . . . . . . . . . . . . . 2 Hauler 3 | . 1 1 1 . . . . . . . . . . Recycler 3 | . . . 3 . . . . . . . . . . Operator 1 | . . . . . . . . . 1 . . . . Watcher 5 | . 1 2 . 1 . . . . . 1 . . . Swarmer 17 | . 3 . 4 . 6 2 . 2 . . . . . Grunt 29 | 1 7 5 . 2 2 3 . 5 3 . 1 . . Brawler 2 | . . . . . . . . 1 1 . . . . Duelist 2 | . . . . . 1 . . 1 . . . . . Sentry 11 | . . 2 4 . . . . 1 2 . . 2 . Hunter 4 | . . . . 2 1 . . . 1 . . . . Programmer 4 | . . . . 1 . . . . 3 . . . . Behemoth 1 | . . . . . . . . . . 1 . . . Enhanced Grunt 3 | . . . . . . . . . . . . . 3 Thug 1 | . . . . . . . . . . . . . 1 Butcher 1 | . . . . . . . . . . . 1 . . Best Kill Streak 6 | 1 6 3 5 4 3 3 . 3 2 1 1 1 2 Combat Bots Only 5 | 1 5 3 4 4 3 3 . 3 2 1 1 1 . Max Kills in Single Turn 3 | 1 1 1 2 1 1 1 . 2 1 1 1 1 3 Gunslinging . | . . . . . . . . . . . . . . Exploded 2 | . . . . . . 1 . 2 . . . . . Melee 1 | . . . . . . . . . 1 . . . . Uniques/NPCs Destroyed . | . . . . . . . . . . . . . . Combat | -11 -10 -9 -8 -7 -7 -7 -7 -6 -6 -6 -6 -6 -6 -------- Run | Yrd Mat Mat Mat Fac Low Low Zio Pro Fac Ext Cet Arc Hub Hostile Shots Fired 586 | 5 49 25 63 61 62 36 . 48 107 27 13 9 81 Missed 171 | 2 20 4 17 17 10 7 . 16 28 12 3 2 33 Damage Taken 7177 | 33 351 272 466 753 919 460 . 683 1208 178 295 161 1398 Core 1494 | . 32 33 17 73 151 141 . 190 181 35 25 . 616 Absorbed by Shields 87 | . . . . . . . . . . 2 85 . . Regen/Repaired (Parts) 375 | . . . . 375 . . . . . . . . . Core Remaining (%) 78 | 100 87 91 96 . . . . 20 . . . . . Volleys Fired 284 | 5 48 21 33 26 23 16 . 27 22 42 14 6 1 Largest 2 | 1 2 2 2 2 2 2 . 2 2 2 2 2 2 Hottest 160 | 40 120 120 150 150 150 150 . 125 160 160 128 128 128 Shots Fired 493 | 5 96 42 60 52 48 19 . 47 39 49 23 11 2 Gun 206 | 5 76 . . 22 10 4 . 27 34 13 9 5 1 Cannon 252 | . 20 42 60 30 38 15 . 20 5 1 14 6 1 Launcher . | . . . . . . . . . . . . . . Special 35 | . . . . . . . . . . 35 . . . Kinetic 28 | . . . . . . . . . 5 2 14 6 1 Thermal 384 | 5 96 42 60 30 38 15 . 37 34 12 9 5 1 Explosive . | . . . . . . . . . . . . . . Electromagnetic 46 | . . . . 22 10 4 . 10 . . . . . Robot Hit Streak 33 | 4 11 14 16 16 12 8 . 8 10 33 3 3 . Robot Miss Streak 6 | 1 6 2 6 2 3 3 . 2 5 2 6 4 . Penetration Max . | . . . . . . . . . . . . . . Secondary Targets . | . . . . . . . . . . . . . . Shots Hit Robots 376 | 4 66 36 39 44 30 12 . 36 46 43 13 7 . Core Hits 173 | 2 19 13 13 23 14 9 . 18 31 6 11 6 8 Critical Kills . | . . . . . . . . . . . . . . Critical Parts Destroyed . | . . . . . . . . . . . . . . Critical Strikes 8 | . . . . . . . . 5 1 . 2 . . Burn 5 | . . . . . . . . 5 . . . . . Blast 2 | . . . . . . . . . . . 2 . . Sever 1 | . . . . . . . . . 1 . . . . Melee Attacks 36 | . . 5 4 . 2 . 1 2 22 . . . . Impact . | . . . . . . . . . . . . . . Slashing 23 | . . . . . . . 1 . 22 . . . . Piercing . | . . . . . . . . . . . . . . Sneak Attacks 11 | . . 5 3 . 1 . . 2 . . . . . Combat Hostiles . | . . . . . . . . . . . . . . Follow-up Attacks . | . . . . . . . . . . . . . . Damage Inflicted 7754 | 46 815 569 981 642 795 329 . 879 1231 320 420 129 598 Guns 2555 | 46 569 . . 92 191 79 . 376 657 285 205 55 . Cannons 3804 | . 246 564 981 550 525 200 . 400 24 25 215 74 . Explosions 807 | . . . . . 79 50 . 103 . . . . 575 Melee 547 | . . . . . . . . . 547 . . . . Ramming 41 | . . 5 . . . . . . 3 10 . . 23 Kinetic 344 | . . . . . . . . . 24 31 215 74 . Thermal 5753 | 46 815 564 981 550 604 250 . 705 657 279 205 55 42 Explosive . | . . . . . . . . . . . . . . Electromagnetic 1069 | . . . . 92 191 79 . 174 . . . . 533 Impact . | . . . . . . . . . . . . . . Slashing 547 | . . . . . . . . . 547 . . . . Piercing . | . . . . . . . . . . . . . . Highest Corruption 23 | . . . . 5 5 5 5 . 5 7 7 7 23 Average Corruption 5 | . . . . 4 5 5 5 . 2 5 7 7 10 Corruption Purged . | . . . . . . . . . . . . . . Corruption Blocked . | . . . . . . . . . . . . . . Effects 157 | . . . . 2 58 24 6 . 1 34 14 6 12 Message Errors 34 | . . . . 1 15 3 2 . . 8 3 . 2 Matter Fused 48 | . . . . 1 11 10 2 . 1 12 5 4 2 Heat Flow Errors 19 | . . . . . 10 4 . . . 1 2 . 2 Energy Discharges 15 | . . . . . 4 3 . . . 3 4 . 1 Data Loss (minor) 19 | . . . . . 8 3 1 . . 4 . 1 2 Data Loss (major) 5 | . . . . . 1 . 1 . . 3 . . . Misfires 10 | . . . . . 5 1 . . . 3 . 1 . Alerts 4 | . . . . . 3 . . . . . . . 1 Misdirections 2 | . . . . . . . . . . . . . 2 Weapon Failures 1 | . . . . . 1 . . . . . . . . Overload Shots . | . . . . . . . . . . . . . . Overflow Damage 113 | . . 3 40 . 24 . . . 17 . . . 29 Projectiles 58 | . . 3 40 . 15 . . . . . . . . Explosions 38 | . . . . . 9 . . . . . . . 29 Melee 17 | . . . . . . . . . 17 . . . . Knockbacks 1 | . . . . . . . . . . . 1 . . Impact . | . . . . . . . . . . . . . . Kinetic 1 | . . . . . . . . . . . 1 . . Secondary . | . . . . . . . . . . . . . . Self-Inflicted Damage 247 | . . . . . 62 . . 63 . 5 . . 117 Shots 3 | . . . . . 1 . . 1 . . . . 1 Rammed 6 | . . . . . . . . . . 1 . . 5 Targets Rammed 9 | . . 2 . . . . . . 1 1 . . 5 Kicked 3 | . . 2 . . . . . . 1 . . . . Crushed . | . . . . . . . . . . . . . . Highest Temperature 420 | 32 198 199 81 30 268 222 . 398 177 420 100 42 184 Average Temperature 82 | 26 98 88 26 15 76 62 . 130 74 134 37 20 79 Received Heat Transfer 1279 | 18 192 135 72 63 108 90 . 189 261 60 25 9 57 Effects 5 | . . . . . . . . 1 . 4 . . . Shutdowns 1 | . . . . . . . . 1 . . . . . Interference 3 | . . . . . . . . . . 3 . . . Short Circuit 1 | . . . . . . . . . . 1 . . . Siege Activations . | . . . . . . . . . . . . . . Robots Corrupted 4 | . . . . . 1 . . . . . . . 3 Combat Hostiles 1 | . . . . . 1 . . . . . . . . Parts Fried 9 | . . . . 1 2 . . 1 . . . . 5 Impact Corruptions . | . . . . . . . . . . . . . . Robots Melted 4 | . 1 . . . . . . 1 1 1 . . . Combat Hostiles 4 | . 1 . . . . . . 1 1 1 . . . Parts Melted 25 | . 6 6 . . 5 . . 6 2 . . . . Heat Transferred 10649 | 100 1818 1184 1517 814 877 346 . 1456 1374 587 451 125 . Parts Sabotaged . | . . . . . . . . . . . . . . Parts Stolen . | . . . . . . . . . . . . . . Parts Stripped . | . . . . . . . . . . . . . . Power Chain Reactions 4 | . . . . . 1 1 . 1 . . . . 1 Alert | -11 -10 -9 -8 -7 -7 -7 -7 -6 -6 -6 -6 -6 -6 ------- Run | Yrd Mat Mat Mat Fac Low Low Zio Pro Fac Ext Cet Arc Hub Peak Influence 1037 | 20 305 351 241 202 . . . . 119 354 1037 547 585 Initial 334 | . 13 65 91 109 . . . . . 55 99 334 191 Average 172 | 3 145 191 104 83 . . . . 43 183 699 487 383 Maximum Alert Level 3 | . 1 1 1 1 . . . . . 1 3 2 2 Low Security (%) 73 | 100 75 37 96 79 . . . . 100 68 5 . 41 Level 1 16 | . 24 62 3 20 . . . . . 31 9 21 6 Level 2 5 | . . . . . . . . . . . 26 78 51 Level 3 4 | . . . . . . . . . . . 57 . . Level 4 . | . . . . . . . . . . . . . . Level 5 . | . . . . . . . . . . . . . . High Security . | . . . . . . . . . . . . . . Max Security . | . . . . . . . . . . . . . . Squads Dispatched 14 | . . 1 . 3 . . . 1 3 . 2 . 4 Investigation 5 | . . . . 1 . . . . . . 2 . 2 Extermination 4 | . . . . 1 . . . . 3 . . . . Reinforcement 3 | . . 1 . 1 . . . . . . . . 1 Assault 1 | . . . . . . . . 1 . . . . . Garrison 1 | . . . . . . . . . . . . . 1 Intercept . | . . . . . . . . . . . . . . Searches Triggered . | . . . . . . . . . . . . . . Construction Impeded . | . . . . . . . . . . . . . . Haulers Reinforced . | . . . . . . . . . . . . . . Active Scanning Responses . | . . . . . . . . . . . . . . Cargo Convoy Interrupts . | . . . . . . . . . . . . . . Stealth | -11 -10 -9 -8 -7 -7 -7 -7 -6 -6 -6 -6 -6 -6 --------- Run | Yrd Mat Mat Mat Fac Low Low Zio Pro Fac Ext Cet Arc Hub Distress Signals 8 | . 2 2 . . . . . . . 1 2 . 1 Communications Jammed 9 | . . . . . . . . . . . . 1 8 Distress Signals 9 | . . . . . . . . . . . . 1 8 Times Spotted 168 | 1 21 12 12 7 11 6 . 22 15 20 18 4 19 Peak Tracking Total 13 | 1 5 4 4 3 3 3 . 13 4 4 5 3 13 Tactical Retreats 18 | . 3 3 . . 1 . . 5 3 . 2 . 1 Traps | -11 -10 -9 -8 -7 -7 -7 -7 -6 -6 -6 -6 -6 -6 ------- Run | Yrd Mat Mat Mat Fac Low Low Zio Pro Fac Ext Cet Arc Hub Traps Triggered 7 | . . 1 . 1 . . . . 2 . . . 3 Indirectly . | . . . . . . . . . . . . . . Trap Hack Attempts . | . . . . . . . . . . . . . . Triggered . | . . . . . . . . . . . . . . Disarmed . | . . . . . . . . . . . . . . Reprogrammed . | . . . . . . . . . . . . . . Reused . | . . . . . . . . . . . . . . Traps Extracted . | . . . . . . . . . . . . . . Installed . | . . . . . . . . . . . . . . Triggered . | . . . . . . . . . . . . . . Machines | -11 -10 -9 -8 -7 -7 -7 -7 -6 -6 -6 -6 -6 -6 ---------- Run | Yrd Mat Mat Mat Fac Low Low Zio Pro Fac Ext Cet Arc Hub Machines Disabled 28 | . . 1 3 . . . . . 3 1 2 3 15 Max in Single Turn 15 | . . 1 1 . . . . . 3 . . 1 15 Garrison Access 1 | . . . . . . . . . 1 . . . . Network Hub 1 | . . . . . . . . . . . . . 1 Machines Repaired . | . . . . . . . . . . . . . . Machines Dismantled . | . . . . . . . . . . . . . . Machines Sabotaged . | . . . . . . . . . . . . . . Overloaded Fab Kills . | . . . . . . . . . . . . . . Hacking | -11 -10 -9 -8 -7 -7 -7 -7 -6 -6 -6 -6 -6 -6 --------- Run | Yrd Mat Mat Mat Fac Low Low Zio Pro Fac Ext Cet Arc Hub Machines Accessed 37 | . 3 4 9 5 . . . . 4 8 3 1 . Terminals 24 | . 2 2 7 2 . . . . 1 7 3 . . Fabricators 1 | . . . . 1 . . . . . . . . . Repair Stations 4 | . . . 1 2 . . . . 1 . . . . Recycling Units 3 | . 1 1 . . . . . . . 1 . . . Scanalyzers 3 | . . 1 1 . . . . . 1 . . . . Garrison Access 1 | . . . . . . . . . 1 . . . . Total Hacks 118 | . 8 10 24 20 . . . . 4 17 10 25 . Successful 79 | . 3 6 16 16 . . . . 3 8 2 25 . Failed 39 | . 5 4 8 4 . . . . 1 9 8 . . Catastrophic 6 | . 2 1 1 1 . . . . . . 1 . . Database Lockouts . | . . . . . . . . . . . . . . Manual 51 | . . . 5 1 . . . . 14 8 2 10 11 Terminals 63 | . 7 3 20 7 . . . . 1 15 10 . . Fabricators 2 | . . . . 2 . . . . . . . . . Repair Stations 14 | . . . 2 11 . . . . 1 . . . . Recycling Units 8 | . 1 5 . . . . . . . 2 . . . Scanalyzers 5 | . . 2 2 . . . . . 1 . . . . Garrison Access 1 | . . . . . . . . . 1 . . . . Terminal Hacks 56 | . 2 2 13 4 . . . . 1 7 2 25 . Record 38 | . . 1 10 . . . . . . . 2 25 . Prototype ID Bank 1 | . . . 1 . . . . . . . . . . Open Door 7 | . . . . . . . . . . 7 . . . Open DSF 1 | . . . . . . . . . 1 . . . . Level Access Points 1 | . 1 . . . . . . . . . . . . Locate Traps 3 | . . 1 1 1 . . . . . . . . . Dispatch Records 2 | . . . 1 1 . . . . . . . . . Investigation Status 1 | . . . . 1 . . . . . . . . . Hauler Manifests 1 | . . . . 1 . . . . . . . . . Registered Components 1 | . 1 . . . . . . . . . . . . Fabricator Hacks 2 | . . . . 2 . . . . . . . . . Load Schematic 1 | . . . . 1 . . . . . . . . . Build 1 | . . . . 1 . . . . . . . . . Repair Station Hacks 12 | . . . 1 10 . . . . 1 . . . . Scan Component 6 | . . . 1 5 . . . . . . . . . Repair 5 | . . . . 5 . . . . . . . . . Refit 1 | . . . . . . . . . 1 . . . . Recycling Unit Hacks 4 | . 1 2 . . . . . . . 1 . . . Report Inventory 3 | . 1 1 . . . . . . . 1 . . . Retrieve Components 1 | . . 1 . . . . . . . . . . . Scanalyzer 4 | . . 2 2 . . . . . . . . . . Insert Component 2 | . . 1 1 . . . . . . . . . . Analyze 2 | . . 1 1 . . . . . . . . . . Garrison Access Hacks 1 | . . . . . . . . . 1 . . . . Seal Access 1 | . . . . . . . . . 1 . . . . Unauthorized Hacks . | . . . . . . . . . . . . . . Terminals . | . . . . . . . . . . . . . . Fabricators . | . . . . . . . . . . . . . . Repair Stations . | . . . . . . . . . . . . . . Recycling Units . | . . . . . . . . . . . . . . Scanalyzers . | . . . . . . . . . . . . . . Garrison Access . | . . . . . . . . . . . . . . Data Cores Recovered 1 | . . . . . . . . . 1 . . . . Used . | . . . . . . . . . . . . . . Hacking Detections 28 | . 2 3 8 4 . . . . 3 4 4 . . Full Trace Events 3 | . . . . 1 . . . . . . 2 . . Feedback Events 1 | . . . . . . . . . . . 1 . . Hackware Fried 1 | . . . . . . . . . . . 1 . . Feedback Blocked . | . . . . . . . . . . . . . . Robot Schematics Acquired 4 | . . . . . . . 4 . . . . . . Robots Built . | . . . . . . . . . . . . . . Authchips . | . . . . . . . . . . . . . . Time . | . . . . . . . . . . . . . . Total Robot Build Rating . | . . . . . . . . . . . . . . Part Schematics Acquired 16 | . . 1 1 . . . 14 . . . . . . Parts Built 1 | . . . . 1 . . . . . . . . . Authchips . | . . . . . . . . . . . . . . Time 25 | . . . . 25 . . . . . . . . . Total Part Build Rating 1 | . . . . 1 . . . . . . . . . Parts Repaired 5 | . . . . 5 . . . . . . . . . Time 172 | . . . . 172 . . . . . . . . . Parts Recycled . | . . . . . . . . . . . . . . Recycled Matter . | . . . . . . . . . . . . . . Retrieved Matter . | . . . . . . . . . . . . . . Retrieved Components 2 | . . 2 . . . . . . . . . . . Parts Scanalyzed 2 | . . 1 1 . . . . . . . . . . Part Schematics Acquired 2 | . . 1 1 . . . . . . . . . . Parts Damaged 1 | . . . 1 . . . . . . . . . . Bothacking | -11 -10 -9 -8 -7 -7 -7 -7 -6 -6 -6 -6 -6 -6 ------------ Run | Yrd Mat Mat Mat Fac Low Low Zio Pro Fac Ext Cet Arc Hub Used RIF Installer . | . . . . . . . . . . . . . . Robots Hacked 5 | . . 2 2 . 1 . . . . . . . . Non-combat 4 | . . 2 1 . 1 . . . . . . . . Combat 1 | . . . 1 . . . . . . . . . . Robot Hacks Applied 6 | . . 3 2 . 1 . . . . . . . . parse_system 3 | . . 1 1 . 1 . . . . . . . . no_distress 3 | . . 2 1 . . . . . . . . . . Relay Couplers Released . | . . . . . . . . . . . . . . Fabnet Peak Effective % . | . . . . . . . . . . . . . . Robots Rewired 18 | . . . . . . . . 2 . 16 . . . Allies Hacked . | . . . . . . . . . . . . . . Hacks Repelled . | . . . . . . . . . . . . . . Allies | -11 -10 -9 -8 -7 -7 -7 -7 -6 -6 -6 -6 -6 -6 -------- Run | Yrd Mat Mat Mat Fac Low Low Zio Pro Fac Ext Cet Arc Hub Total Allies 41 | . . . . . . . 4 2 . 30 5 . . Largest Group 15 | . . . . . . . 4 4 . 15 10 7 6 Highest-Rated Group 659 | . . . . . . . 153 153 . 507 659 589 437 Highest-Rated Ally 159 | . . . . . . . 39 39 . 159 159 152 96 Zionite Dispatches 3 | . . . . . . . . . . 2 . . 1 Light 1 | . . . . . . . . . . 1 . . . Recon 1 | . . . . . . . . . . . . . 1 Kinetic Resupply 1 | . . . . . . . . . . 1 . . . Total Orders 6 | . . . . . . . . . . 6 . . . FOLLOW 1 | . . . . . . . . . . 1 . . . DROP 1 | . . . . . . . . . . 1 . . . COLLECT 4 | . . . . . . . . . . 4 . . . Ally Attacks 313 | . . . . . . . . 40 . 131 108 33 1 Total Damage 8247 | . . . . . . . . 1160 . 3030 3083 924 50 Kills 55 | . . . . . . . . 5 . 22 26 2 . Allies Corrupted 5 | . . . . . . . . . . 1 . . 4 Allies Melted . | . . . . . . . . . . . . . . Intel | -11 -10 -9 -8 -7 -7 -7 -7 -6 -6 -6 -6 -6 -6 ------- Run | Yrd Mat Mat Mat Fac Low Low Zio Pro Fac Ext Cet Arc Hub Robot Analysis Total . | . . . . . . . . . . . . . . Derelict Logs Recovered 5 | . . . . . 2 1 . 2 . . . . . Drone Launches . | . . . . . . . . . . . . . . Drone Recoveries . | . . . . . . . . . . . . . . Decoded 0b10 Intel 98 | . . . . . . . . . 48 31 7 4 8 Traps 8 | . . . . . . . . . . 6 . . 2 Items 60 | . . . . . . . . . 36 18 1 . 5 Machines 19 | . . . . . . . . . 7 6 3 2 1 Patrols 2 | . . . . . . . . . 1 . 1 . . Guards 3 | . . . . . . . . . 3 . . . . Exits 6 | . . . . . . . . . 1 1 2 2 . Zionite Intel Received 3 | . . . . . . . . . 1 1 . . 1 Branch Access 1 | . . . . . . . . . 1 . . . . Component Stockpiles 1 | . . . . . . . . . . 1 . . . Depthwide Sectors/-1 1 | . . . . . . . . . . . . . 1 Exploration | -11 -10 -9 -8 -7 -7 -7 -7 -6 -6 -6 -6 -6 -6 ------------- Run | Yrd Mat Mat Mat Fac Low Low Zio Pro Fac Ext Cet Arc Hub Turns Passed 14690 | 87 474 612 1128 823 2210 1144 2402 1825 1855 1172 558 147 253 Spaces Moved 7729 | 65 224 370 678 289 768 261 1459 933 869 1008 437 113 255 Core 61 | 17 . . . . 5 . . . . . . . 39 Treads 951 | . . . 370 288 293 . . . . . . . . Legs 4591 | 48 224 370 308 1 255 138 1459 933 855 . . . . Wheels . | . . . . . . . . . . . . . . Hover 1788 | . . . . . . . . . 14 1008 437 113 216 Flight 338 | . . . . . 215 123 . . . . . . . Fastest Speed 50 | 50 120 120 120 152 152 260 130 125 52 52 102 102 50 Average Speed 154 | 101 120 120 142 152 268 401 151 180 133 79 102 102 93 Slowest Speed 675 | 120 120 120 320 260 600 675 260 260 260 106 102 106 550 Overloaded Moves . | . . . . . . . . . . . . . . Propulsion Burnouts . | . . . . . . . . . . . . . . Robots Hopped . | . . . . . . . . . . . . . . Cave-ins Triggered . | . . . . . . . . . . . . . . Exploration Rate (%) 54 | 6 46 37 49 10 89 45 91 88 13 97 78 80 33 Regions Visited 13 Branch Regions 8 Pre-discovered Areas 6 | . . . . . . . . 1 . . . . 5 Known Exits Taken 11 | . 1 . 1 1 1 1 1 1 1 1 1 1 . Unknown Exits Taken 2 | 1 . 1 . . . . . . . . . . . Scrap Searched 9 | . . . . . 3 4 1 1 . . . . . Spaces Dug . | . . . . . . . . . . . . . . Terrain Destroyed 191 | . . . 8 . 5 3 . 11 18 . 2 . 144 Melee . | . . . . . . . . . . . . . . Projectile 14 | . . . 8 . . . . . 4 . 2 . . AOE 177 | . . . . . 5 3 . 11 14 . . . 144 Terrain Rammed . | . . . . . . . . . . . . . . Walls Destroyed . | . . . . . . . . . . . . . . Machines Disabled . | . . . . . . . . . . . . . . Actions | -11 -10 -9 -8 -7 -7 -7 -7 -6 -6 -6 -6 -6 -6 --------- Run | Yrd Mat Mat Mat Fac Low Low Zio Pro Fac Ext Cet Arc Hub Total 9978 | 78 335 488 787 622 876 342 1648 1028 1499 1349 524 133 269 Wait 1553 | . 32 63 19 267 71 55 163 37 518 241 71 14 2 Move 7716 | 64 223 369 677 288 767 260 1458 932 868 1007 436 112 255 Hop . | . . . . . . . . . . . . . . Pick Up 89 | 3 9 7 14 11 2 1 10 7 14 10 . . 1 Fast Attach 53 | 4 4 3 7 7 1 1 4 5 12 4 1 . . Attach 51 | 1 . 2 6 7 4 7 2 6 6 8 1 1 . Detach 43 | . . 1 6 7 1 2 6 3 6 8 1 . 2 Swap 56 | 1 6 11 4 1 3 . . 5 10 14 . . 1 Drop 84 | . 13 4 17 8 1 . 4 4 20 11 . . 2 Fire 284 | 5 48 21 33 26 23 16 . 27 22 42 14 6 1 Melee 36 | . . 5 4 . 2 . 1 2 22 . . . . Ram 6 | . . . . . . . . . . 1 . . 5 Kick 3 | . . 2 . . . . . . 1 . . . . Crush . | . . . . . . . . . . . . . . Escape Stasis . | . . . . . . . . . . . . . . Rewire 4 | . . . . . 1 . . . . 3 . . . Trap . | . . . . . . . . . . . . . . Miscellaneous . | . . . . . . . . . . . . . . Route ------- -11/Scrapyard -10/Materials (discovered 3 exits: *Mat x3) -9/Materials -8/Materials -7/Factory -7/Lower Caves -7/Lower Caves -7/Zion -6/Proximity Caves -6/Factory (discovered 4 exits: Low x2 / *Ext x2) -6/Extension (discovered 3 exits: *Fac x2 / *Cet) -6/Cetus (discovered 3 exits: *Fac x2 / *Arc) -6/Archives (discovered 3 exits: Fac / *Hub x2) -6/Hub_04(d) History --------- Turn | Location | Event 2 | -11/Scrapyard | Met Revision 17 59 | -11/Scrapyard | Discovered new exit (range 8) 88 | -11/Scrapyard | Entered Materials 163 | -10/Materials | Identified exit to Materials 562 | -10/Materials | Entered another Materials area 562 | -9/Materials | Evolved 2 slots: Propulsion x1, Utility x1 694 | -9/Materials | Build established: Mutant 1103 | -9/Materials | Discovered new exit (range 9) 1174 | -9/Materials | Entered another Materials area 1174 | -8/Materials | Evolved 2 slots: Propulsion x1, Utility x1 2242 | -8/Materials | Discovered new exit (range 15) 2301 | -8/Materials | Identified exit to Factory 2302 | -8/Materials | Entered Factory 2302 | -7/Factory | Evolved 2 slots: Utility x2 2398 | -7/Factory | Fabricated Datajack (x1) 2645 | -7/Factory | Repaired Adv. Treads 2788 | -7/Factory | Discovered new exit (range 13) 2851 | -7/Factory | Repaired Lgt. Treads 2884 | -7/Factory | Repaired Cooling System 2923 | -7/Factory | Repaired Hvy. Particle Cannon 2962 | -7/Factory | Repaired Hvy. Particle Cannon 3009 | -7/Factory | Identified exit to Lower Caves 3125 | -7/Factory | Entered Lower Caves 3322 | -7/Lower Caves | Learned Factory emergency access door positions 3872 | -7/Lower Caves | Encountered a Warlord checkpoint 3951 | -7/Lower Caves | Build established: Scavenger-Mutant 4034 | -7/Lower Caves | Spotted B-75 Beast 4180 | -7/Lower Caves | Lost 4 parts (1p3n) 4233 | -7/Lower Caves | Learned Factory emergency access door positions 4443 | -7/Lower Caves | Build established: Mutant 5207 | -7/Lower Caves | Discovered new exit (range 8) 5330 | -7/Lower Caves | Identified exit to Lower Caves 5335 | -7/Lower Caves | Entered another Lower Caves area 5377 | -7/Lower Caves | Learned location of 1 exit from Proximity Caves 5584 | -7/Lower Caves | Lost 3 parts (1p1u1w) 6077 | -7/Lower Caves | Core integrity fell below 50% 6461 | -7/Lower Caves | Discovered new exit (range 8) 6476 | -7/Lower Caves | Identified exit to Zion 6479 | -7/Lower Caves | Entered Zion 6629 | -7/Zion | Discovered new exit (range 14) 6660 | -7/Zion | Identified exit to Proximity Caves 6826 | -7/Zion | System corruption cleaned by Quarantine Array 7448 | -7/Zion | Acquired unknown access codes intercepted by a Zionite 8158 | -7/Zion | Found Prototype Hackware 8158 | -7/Zion | Identified Exp. System Shield 8176 | -7/Zion | Found Prototype Processor 8178 | -7/Zion | Found Prototype Processor 8182 | -7/Zion | Found Prototype Processor 8186 | -7/Zion | Found Prototype Processor 8435 | -7/Zion | Build established: Hacker-Mutant 8549 | -7/Zion | Imprinted 8551 | -7/Zion | Declared Zion's savior 8881 | -7/Zion | Entered Proximity Caves 8881 | -6/Proximity Caves | Accompanied by 4 allies 8882 | -6/Proximity Caves | Identified exit to Factory 8920 | -6/Proximity Caves | Attracted the attention of an 0b10 outpost 8970 | -6/Proximity Caves | Attracted the attention of an 0b10 checkpoint 9000 | -6/Proximity Caves | Lost 4 allies 9020 | -6/Proximity Caves | Identified Exp. Terrain Scan Processor 9022 | -6/Proximity Caves | Identified Exp. Signal Interpreter (x2) 9024 | -6/Proximity Caves | Identified Exp. Armor Integrity Analyzer 9957 | -6/Proximity Caves | Learned Factory trap positions 10706 | -6/Proximity Caves | Entered Factory 10706 | -6/Factory | Evolved 2 slots: Utility x2 10707 | -6/Factory | Loaded intel: 111 trap records 10792 | -6/Factory | Spotted B-75 Beast 10830 | -6/Factory | Lost 3 parts (1u2w) 10946 | -6/Factory | Identified exit to Extension 11267 | -6/Factory | Lost 3 parts (2n1u) 11556 | -6/Factory | Build established: Scavenger-Mutant 11942 | -6/Factory | Retrieved Zion intel report: Branch Access 11942 | -6/Factory | Identified exit to Lower Caves 12001 | -6/Factory | Terminal network hard line cut 12085 | -6/Factory | Build established: Hacker-Mutant 12561 | -6/Factory | Entered Extension 12668 | -6/Extension | Zion Light squad teleported in 12916 | -6/Extension | Rescued a captive Derelict 12916 | -6/Extension | Rescued a captive Derelict 12947 | -6/Extension | Spotted B-75 Beast 12954 | -6/Extension | Spotted B-75 Beast 12960 | -6/Extension | Allies destroyed B-75 Beast 12969 | -6/Extension | Destroyed B-75 Beast 12992 | -6/Extension | Identified exit to Factory 12996 | -6/Extension | Lost 11 allies 13041 | -6/Extension | Rescued a captive Derelict 13042 | -6/Extension | Rescued a captive Derelict 13064 | -6/Extension | Retrieved Zion intel report: Component Stockpiles 13065 | -6/Extension | Zion Kinetic Resupply teleported in 13151 | -6/Extension | Rescued a captive Derelict 13151 | -6/Extension | Rescued a captive Derelict 13237 | -6/Extension | Rescued A7 13251 | -6/Extension | Rescued a captive Derelict 13280 | -6/Extension | Rescued a captive Derelict 13331 | -6/Extension | Rescued a captive Derelict 13369 | -6/Extension | Discovered exit to Factory (range 10) 13370 | -6/Extension | Discovered new exit (range 6) 13375 | -6/Extension | Identified exit to Cetus 13666 | -6/Extension | Build established: Scavenger-Mutant 13733 | -6/Extension | Entered Cetus 13733 | -6/Cetus | Accompanied by 10 allies (A7) 13738 | -6/Cetus | Acquired a Cetus Manufacturing Module code from A7 13748 | -6/Cetus | Spotted Cetus Guard 13748 | -6/Cetus | Spotted Cetus Guard 13753 | -6/Cetus | Spotted Cetus Guard 13753 | -6/Cetus | Spotted Cetus Guard 13760 | -6/Cetus | Allies destroyed Cetus Guard 13764 | -6/Cetus | Allies destroyed Cetus Guard 13766 | -6/Cetus | Allies destroyed Cetus Guard 13766 | -6/Cetus | Allies destroyed Cetus Guard 13811 | -6/Cetus | Lost 4 allies 13848 | -6/Cetus | Started Cetus Manufacturing Module 13866 | -6/Cetus | Imp. Hacking Suite fried by hacking feedback 13873 | -6/Cetus | Manufactured an Enhanced Grunt 13898 | -6/Cetus | Manufactured an Enhanced Grunt 13922 | -6/Cetus | Discovered new exit (range 16) 13923 | -6/Cetus | Manufactured an Enhanced Grunt 13936 | -6/Cetus | Identified exit to Archives 13948 | -6/Cetus | Manufactured an Enhanced Grunt 13957 | -6/Cetus | Spotted Cetus Guard 13961 | -6/Cetus | Spotted Cetus Guard 13962 | -6/Cetus | Spotted Cetus Guard 13967 | -6/Cetus | Spotted Cetus Guard 13968 | -6/Cetus | Allies destroyed Cetus Guard 13973 | -6/Cetus | Manufactured an Enhanced Grunt 13975 | -6/Cetus | Allies destroyed Cetus Guard 13985 | -6/Cetus | Allies destroyed Cetus Guard 13985 | -6/Cetus | Allies destroyed Cetus Guard 13994 | -6/Cetus | Scared off Revision 17 14009 | -6/Cetus | Lost 3 allies 14271 | -6/Cetus | Build established: Commander-Mutant 14291 | -6/Cetus | Entered Archives 14291 | -6/Archives | Accompanied by 7 allies (A7) 14355 | -6/Archives | Unable to access archive contents 14357 | -6/Archives | Discovered new exit (range 16) 14359 | -6/Archives | Identified exit to Hub_04(d) 14366 | -6/Archives | Unable to access archive contents 14376 | -6/Archives | Unable to access archive contents 14438 | -6/Archives | Entered Hub_04(d) 14438 | -6/Hub_04(d) | Accompanied by 6 allies 14505 | -6/Hub_04(d) | Zion Recon squad teleported in 14561 | -6/Hub_04(d) | Network Hub disabled 14592 | -6/Hub_04(d) | Spotted Lightning 14596 | -6/Hub_04(d) | Garrison activated, responded to threat 14620 | -6/Hub_04(d) | Spotted Lightning 14621 | -6/Hub_04(d) | Spotted Lightning 14623 | -6/Hub_04(d) | System corruption reached 10% 14629 | -6/Hub_04(d) | Lost 4 allies 14643 | -6/Hub_04(d) | Spotted B-75 Beast 14644 | -6/Hub_04(d) | Retrieved Zion intel report: Depthwide Sectors/-1 14651 | -6/Hub_04(d) | Spotted Lightning 14672 | -6/Hub_04(d) | Released all parts (3) 14679 | -6/Hub_04(d) | Core integrity fell below 50% 14684 | -6/Hub_04(d) | Core integrity fell below 20% 14691 | -6/Hub_04(d) | Destroyed by X-62 Marksman with Gauss Rifle Last Messages --------------- 14676_ ALERT: Suspicious activity at Terminal H005. Dispatching Investigation squad. 14678_ ALERT: Suspicious activity at Terminal H010. Dispatching Investigation squad. 14678_ Extracted 22 energy. 14678_ Penetrated by EMDS Slug. 14680_ EMDS Slug penetrates Wall. 14680_ Penetrated by EMDS Slug. 14681_ Knocked back. 14682_ EMDS Slug penetrates Wall. 14683_ Penetrated by EMDS Slug. 14684_ Triggered Ambush Trap. 14684_ B-48 Gladiator emerges from a hatch in the floor. 14684_ L-41 Fighter emerges from a hatch in the floor. 14684_ S-27 Virus emerges from a hatch in the floor. 14685_ Control Node disabled. 14688_ ZC90 RKO6GMQ:YLFDE4BNOKI/% Map ----- +----------------------------------------------------+ | #??????????????? """" # "#[#???? | | #??????????????# """" # #%#???? | | #??????????????# ######!##??? | | ??????????????????"""" #####!![#??? | | ########?????????# """" %! / ]!!!#??? | | =%* #?????????? """" !! ####"=*]#??? | | = #????????# """" ! / ##??? | | #?????????# ### #???? | | ########?????????#######"######## #???? | | #??????????????????????# #] %+ #???? | | #??????????????????????# # # ####???? | | #??????????????????????# # """ # #??????? | | #??????????????????????# # ?? ?# #??????? | | #??????????????????????#!######?#H#?#????? | | #??????????????????????# ##"##### #"##???? | | #??????????????????????# ###?? | | #??????????????????????# #?? | | #??????????????????????# " #?? | | ###########????????????# " " ###?? | | # ! ]#????????????# " " " #???? | | # ##?????####### *#???? | | # """ """ #?????# #???? | | # #??????# ##### #""T""#######???? | | + """ #??????# #???#s#"""""#?????????? | | # "T" #??????# #??##/########????????? | | # """ !!#??????# #??# @ ! #????????? | | # ! #??????# #??# #????????? | | ###+##+####??????# #??# #????????? | | #?# #?????????# #??# """" #????????? | | ### ###########%#??# """" #????????? | | [%=!#??# """" #????????? | | ####################??# """" #????????? | | ??????????????????????# ????????????? | | ??????????????????????###/###????????????? | | ?????????????????????????x#??????????????? | | ????????????????????????? #??????????????? | | ????????????????????????? #??????????????? | | ?????????????????????????#???????????????? | | ?????????????????????????????????????????? | | ????????????/????????????????????????????? | | ?????????????????????????????????????????? | | ?????????????????????????????????????????? | | ?????????????????????????????????????????? | | ?????????????????????????????????????????? | | ?????????????????????????????????????????? | | ?????????????????????????????????????????? | | ?????????????????????????????????????????? | | ?????????????????????????????????????????? | | ?????????????????????????????????????????? | | ?????????????????????????????????????????? | +----------------------------------------------------+ Best States ------------- Heat Dissipation 70 Coolant Potential 50 Energy Generation 27 Energy Capacity 500 Matter Stores 300 Matter Capacity 300 Sight Range 16 Robot Scan Range 15 Terrain Scan Density 10 ECM Strength 2 Jamming Range 12 Armor Coverage 225 Evasion (%) 55 Targeting Accuracy 8 Armor Integrity Analysis 50 Recoil Reduction 4 Energy Filtering 30 Offensive Hacking 22 Defensive Hacking 16 Item Schematics ----------------- Imp. Aluminum Leg | -9/Materials | Scanalyzed Datajack | -8/Materials | Scanalyzed Component Analysis Suite | -7/Zion | Archive Imp. Particle Charger | -7/Zion | Archive Imp. Recalibrator | -7/Zion | Archive Imp. Deuterium Engine | -7/Zion | Archive Proton Cannon | -7/Zion | Archive Gatling Laser | -7/Zion | Archive Bore Cannon | -7/Zion | Archive Adv. Assault Cannon | -7/Zion | Archive Magnetic Acceleration Cannon | -7/Zion | Archive Imp. Melee Analysis Suite | -7/Zion | Archive Mass Driver | -7/Zion | Archive Imp. Titanium Leg | -7/Zion | Archive Kinecellerator | -7/Zion | Archive Imp. Core Shielding | -7/Zion | Archive Robot Schematics ------------------ G-47 Trooper | -7/Zion | Archive A-02 Transporter | -7/Zion | Archive Y-54 Guardian | -7/Zion | Archive X-82 Rainmaker | -7/Zion | Archive Fabricated ------------ Datajack | x1 | -7/Factory Alien Tech Used ----------------- None Achievements -------------- A New Friend Collateral Damage Decoder Ring I Spy I'm Back, Baby! Knowing Is Half The Battle Prison Break Project G-00 Revising The Future Robot Respite The More The Merrier The One Challenges ------------ None Game ------ Seed ChainAssaultCharger Manual? 0 Play Time 04:58:59 Cumulative 8.4 hours Start 2024.04.06 @ 11:29:18 End 2024.04.06 @ 17:18:20 Sessions 1 Manual Loads 0 Difficulty Rogue Special Mode None Game No. 2 Rogue 2 Adventurer 0 Explorer 0 Win Type - Total 0 Types 0/0/0/0/0/0/0/0/0 Lore% 14 Gallery% 12 Achievement% 19 Wizard Run 0 Options --------- Layout 1 ASCII 0 Keyboard 1 Movement Numpad Keybinds 0 Fullscreen 2 Font 24/Smallcaps Map View 50x35 Zoom Use 0% Tactical HUD 1 Map Filters NONE Filters NONE Steam 1 RUN: ba386277-4b2e-44e5-9df7-1612f2224113